fUST/lending_fUST_20240208
["ID","MTS","AMOUNT","RATE_DAILY","PERIOD"]
[313424079,1707331840003,-500.0,0.00027397,3]
[313424080,1707331840013,-794.5,0.00027397,3]
[313424081,1707331840022,-500.0,0.00027397,3]
[313424082,1707331840031,-2462.39,0.00027397,3]
[313424083,1707331840040,-2258.83,0.00027397,3]
[313424084,1707331840049,-6040.91,0.00027397,3]
[313424085,1707331840058,-500.0,0.00027397,3]
[313424086,1707331840068,-387.8,0.00027397,3]
[313424087,1707331840077,-254.62200392,0.00027397,3]
[313424088,1707331840086,-500.0,0.00027397,3]
[313424089,1707331840096,-500.0,0.00027397,3]
[313424090,1707331840105,-770.34,0.00027397,3]
[313424091,1707331840114,-572.64,0.00027397,3]
[313424092,1707331840123,-500.0,0.00027397,3]
[313424093,1707331840133,-500.0,0.00027397,3]
[313424095,1707331840142,-1275.61,0.00027397,3]
[313424097,1707331840151,-2401.36,0.00027397,3]
[313424098,1707331840160,-511.89299392,0.000275,2]
[313424099,1707331840169,-195.37402942,0.0002757,2]
[313424100,1707331840179,-471.5209636,0.0002757,2]
[313424101,1707331840188,-200598.77292872,0.00027571,2]
[313424102,1707331840199,-500.0,0.00027671,3]
[313424103,1707331840208,-500.0,0.00027671,2]
[313424104,1707331840217,-500.0,0.00027671,3]
[313424105,1707331840226,-500.0,0.00027671,3]
[313424106,1707331840235,-1000.0,0.00027671,2]
[313424107,1707331840244,-933.83,0.00027671,3]
[313424108,1707331840253,-500.0,0.00027671,3]
[313424109,1707331840262,-500.0,0.00027671,3]
[313424110,1707331840270,-1249.98,0.00027671,3]
[313424111,1707331840279,-500.0,0.00027671,3]
[313424112,1707331840289,-500.0,0.00027671,3]
[313424113,1707331840299,-500.0,0.00027671,3]
[313424114,1707331840308,-786.19,0.00027671,3]
[313424115,1707331840317,-500.0,0.00027671,2]
[313424116,1707331840327,-500.0,0.00027671,3]
[313424117,1707331840336,-500.0,0.00027671,3]
[313424118,1707331840346,-1133.65,0.00027671,3]
[313424119,1707331840355,-3743.83,0.00027671,3]
[313424120,1707331840365,-500.0,0.00027671,3]
[313424121,1707331840374,-500.0,0.00027671,2]
[313424122,1707331840387,-4075.13,0.00027671,3]
[313424123,1707331840397,-1048.26,0.00027671,3]
[313424124,1707331840406,-500.0,0.00027671,3]
[313424125,1707331840416,-1119.55,0.00027671,3]
[313424126,1707331840425,-500.0,0.00027671,3]
[313424127,1707331840434,-1303.87,0.00027671,3]
[313424128,1707331840443,-675.01,0.00027671,3]
[313424129,1707331840453,-500.0,0.00027671,3]
[313424130,1707331840462,-794.5,0.00027671,3]
[313424131,1707331840472,-500.0,0.00027671,3]
[313424132,1707331840481,-2462.39,0.00027671,3]
[313424133,1707331840490,-2258.83,0.00027671,3]
[313424134,1707331840500,-6040.91,0.00027671,3]
[313424135,1707331840509,-500.0,0.00027671,3]
[313424136,1707331840518,-500.0,0.00027671,3]
[313424137,1707331840528,-500.0,0.00027671,3]
[313424138,1707331840537,-770.34,0.00027671,3]
[313424139,1707331840547,-572.64,0.00027671,3]
[313424140,1707331840558,-500.0,0.00027671,3]
[313424141,1707331840568,-1275.61,0.00027671,3]
[313424142,1707331840578,-2401.36,0.00027671,3]
[313424143,1707331840587,-200.0,0.00027901,15]
[313424144,1707331840597,-500.0,0.00027945,2]
[313424145,1707331840606,-500.0,0.00027945,3]
[313424146,1707331840616,-500.0,0.00027945,3]
[313424147,1707331840625,-933.83,0.00027945,3]
[313424148,1707331840636,-500.0,0.00027945,3]
[313424149,1707331840645,-500.0,0.00027945,3]
[313424150,1707331840655,-1249.98,0.00027945,3]
[313424151,1707331840664,-500.0,0.00027945,3]
[313424152,1707331840673,-500.0,0.00027945,3]
[313424153,1707331840683,-786.19,0.00027945,3]
[313424154,1707331840692,-423.28377858,0.00027945,2]
[313424155,1707331840702,-500.0,0.00027945,3]
[313424157,1707331840713,-1133.65,0.00027945,3]
[313424158,1707331840723,-3743.83,0.00027945,3]
[313424160,1707331840733,-500.0,0.00027945,3]
[313424162,1707331840742,-500.0,0.00027945,2]
[313424163,1707331840751,-4075.13,0.00027945,3]
[313424164,1707331840760,-1048.26,0.00027945,3]
[313424165,1707331840769,-500.0,0.00027945,3]
[313424166,1707331840778,-1119.55,0.00027945,3]
[313424167,1707331840789,-500.0,0.00027945,3]
[313424168,1707331840798,-1303.87,0.00027945,3]
[313424169,1707331840807,-675.01,0.00027945,3]
[313424170,1707331840816,-500.0,0.00027945,3]
[313424171,1707331840825,-794.5,0.00027945,3]
[313424172,1707331840835,-500.0,0.00027945,3]
[313424173,1707331840844,-2462.39,0.00027945,3]
[313424174,1707331840853,-2258.83,0.00027945,3]
[313424176,1707331840862,-6040.91,0.00027945,3]
[313424178,1707331840871,-500.0,0.00027945,3]
[313424180,1707331840882,-500.0,0.00027945,3]
[313424181,1707331840891,-500.0,0.00027945,3]
[313424182,1707331840900,-770.34,0.00027945,3]
[313424183,1707331840910,-572.64,0.00027945,3]
[313424184,1707331840920,-500.0,0.00027945,3]
[313424185,1707331840931,-1275.61,0.00027945,3]
[313424186,1707331840942,-2401.36,0.00027945,3]
[313424187,1707331840951,-1858.48878717,0.00027998,2]
[313424188,1707331840961,-1312.10683789,0.00027998,2]
[313424189,1707331840970,-155.92685604,0.00027998,2]
[313424190,1707331840979,-155.66315952,0.00027998,2]
[313424191,1707331840989,-155.07747611,0.00027998,2]
[313424192,1707331840999,-1315.41366944,0.00027999,2]
[313424193,1707331841008,-272.87948714,0.00027999,2]
[313424194,1707331841018,-332.82390398,0.00027999,2]
[313424195,1707331841027,-1716.49476713,0.00028,2]
[313424196,1707331841037,-51930.88733907,0.00028,2]
[313424197,1707331841046,-8668.59935887,0.0002811,4]
[313424198,1707331841055,-19203.74338749,0.000282,3]
[313424199,1707331842044,-500.0,0.00027397,3]
[313424200,1707331842054,-500.0,0.00027671,3]
[313424201,1707331842063,-500.0,0.00027945,3]
[313424202,1707331842072,-611.81572043,0.000282,3]
[313424277,1707331846726,-500.0,0.00027397,3]
[313424279,1707331846736,-188.71433546,0.00027397,3]
[313424306,1707332621597,155.0,0.00020015,4]
[313424312,1707332948434,-154.98450155,0.00019797,3]
[313424313,1707332948456,-179.18619241,0.00019798,2]
[313424314,1707332948477,-1513.15613917,0.00019798,2]
[313424315,1707332948498,-294.51312657,0.00019799,2]
[313424316,1707332948520,-2822.01569009,0.00019801,2]
[313424317,1707332948541,-252.905182,0.00019805,2]
[313424318,1707332948562,-168.978433,0.00020017,2]
[313424319,1707332948746,-7165.14947035,0.00021,2]
[313424320,1707332948769,-208.64430105,0.00022217,2]
[313424321,1707332948793,-24900.0,0.00022218,2]
[313424322,1707332948813,-168.657807,0.00023724,2]
[313424323,1707332948837,-112.68068001,0.00024438,7]
[313424324,1707332951394,294.51312657,0.00019796,2]
[313424325,1707332954128,-87.31931999,0.00024438,7]
[313424326,1707332954151,-565.89769209,0.0002499,3]
[313424462,1707333037999,-154.98450155,0.00022498,4]
[313424463,1707333038009,-584.60634119,0.00024989,2]
[313424464,1707333038018,-155.92685604,0.00024998,2]
[313424465,1707333038029,-155.66315952,0.00024998,2]
[313424466,1707333038038,-332.82390398,0.00024998,2]
[313424467,1707333038047,-155.07747611,0.00024998,2]
[313424469,1707333038056,-179.13370843,0.00024998,2]
[313424471,1707333038065,-2819.92821461,0.00024998,2]
[313424472,1707333038074,-1312.10683789,0.00024999,2]
[313424473,1707333038083,-1858.48878717,0.00024999,2]
[313424474,1707333038092,-51038.408409,0.00025,3]
[313424475,1707333038102,-1830.70871665,0.00025,2]
[313424476,1707333038111,-3252.21461977,0.00025,2]
[313424477,1707333038120,-155.02170304,0.00025,2]
[313424478,1707333038130,-335.52992191,0.00025,2]
[313424479,1707333038138,-4198.98,0.00025649,3]
[313424480,1707333038147,-8705.35280167,0.00025659,2]
[313424481,1707333038156,-1107.06103016,0.000259,2]
[313424482,1707333038165,-805.90215434,0.00026197,2]
[313424483,1707333038174,-182.3220363,0.00026197,2]
[313424484,1707333038183,-8668.59935887,0.0002658,4]
[313424485,1707333038193,-22780.0549174,0.000268,2]
[313424486,1707333038202,-280.0,0.00026882,15]
[313424487,1707333038210,-1382.39428642,0.00027,2]
[313424488,1707333038219,-1315.41366944,0.00027,2]
[313424489,1707333038228,-720.68,0.00027397,3]
[313424490,1707333038237,-500.0,0.00027397,3]
[313424491,1707333038246,-500.0,0.00027397,2]
[313424492,1707333038255,-500.0,0.00027397,2]
[313424493,1707333038265,-975.76,0.00027397,3]
[313424494,1707333038275,-500.0,0.00027397,3]
[313424495,1707333038284,-1296.8,0.00027397,3]
[313424496,1707333038293,-500.0,0.00027397,3]
[313424497,1707333038302,-500.0,0.00027397,3]
[313424498,1707333038311,-500.0,0.00027397,3]
[313424499,1707333038320,-1148.48,0.00027397,3]
[313424500,1707333038329,-500.0,0.00027397,2]
[313424501,1707333038339,-500.0,0.00027397,3]
[313424502,1707333038348,-500.0,0.00027397,3]
[313424503,1707333038357,-4475.98,0.00027397,3]
[313424504,1707333038366,-500.0,0.00027397,3]
[313424505,1707333038375,-1270.9,0.00027397,3]
[313424506,1707333038384,-1004.58,0.00027397,3]
[313424507,1707333038393,-1325.72,0.00027397,3]
[313424508,1707333038402,-500.0,0.00027397,3]
[313424509,1707333038412,-646.89,0.00027397,3]
[313424510,1707333038421,-500.0,0.00027397,3]
[313424511,1707333038431,-500.0,0.00027397,3]
[313424512,1707333038440,-2455.66,0.00027397,3]
[313424513,1707333038450,-782.88,0.00027397,3]
[313424514,1707333038459,-2227.21,0.00027397,3]
[313424515,1707333038468,-500.0,0.00027397,3]
[313424516,1707333038477,-1000.0,0.00027397,2]
[313424517,1707333038487,-771.31,0.00027397,3]
[313424518,1707333038496,-6427.14,0.00027397,3]
[313424519,1707333038504,-548.78,0.00027397,3]
[313424520,1707333038513,-500.0,0.00027397,3]
[313424521,1707333038523,-500.0,0.00027397,3]
[313424522,1707333038532,-2384.52,0.00027397,3]
[313424523,1707333038541,-500.0,0.00027397,3]
[313424524,1707333038550,-500.0,0.00027397,3]
[313424525,1707333038559,-1284.96,0.00027397,3]
[313424526,1707333038568,-3677.54,0.00027397,3]
[313424527,1707333038578,-176.31954077,0.00027397,3]
[313424528,1707333038587,-500.0,0.00027397,3]
[313424529,1707333038598,-500.0,0.00027397,3]
[313424530,1707333038606,-500.0,0.00027397,3]
[313424531,1707333038615,-500.0,0.0002767,2]
[313424532,1707333038625,-230.31306798,0.0002767,2]
[313424533,1707333038634,-720.68,0.00027671,3]
[313424534,1707333038644,-500.0,0.00027671,3]
[313424535,1707333038653,-423.28377858,0.00027671,2]
[313424536,1707333038662,-500.0,0.00027671,2]
[313424537,1707333038672,-975.76,0.00027671,3]
[313424538,1707333038776,-500.0,0.00027671,3]
[313424539,1707333038792,-1296.8,0.00027671,3]
[313424540,1707333038803,-500.0,0.00027671,3]
[313424541,1707333038812,-500.0,0.00027671,3]
[313424542,1707333038822,-500.0,0.00027671,3]
[313424543,1707333038832,-1148.48,0.00027671,3]
[313424544,1707333038843,-500.0,0.00027671,2]
[313424545,1707333038854,-500.0,0.00027671,3]
[313424546,1707333038864,-500.0,0.00027671,3]
[313424547,1707333038874,-4475.98,0.00027671,3]
[313424548,1707333038884,-500.0,0.00027671,3]
[313424549,1707333038894,-1270.9,0.00027671,3]
[313424550,1707333038904,-1004.58,0.00027671,3]
[313424551,1707333038912,-1325.72,0.00027671,3]
[313424552,1707333038922,-500.0,0.00027671,3]
[313424553,1707333038931,-646.89,0.00027671,3]
[313424554,1707333038940,-500.0,0.00027671,3]
[313424555,1707333038950,-500.0,0.00027671,3]
[313424556,1707333038959,-2455.66,0.00027671,3]
[313424557,1707333038968,-782.88,0.00027671,3]
[313424558,1707333038977,-2227.21,0.00027671,3]
[313424559,1707333038986,-500.0,0.00027671,3]
[313424560,1707333038995,-771.31,0.00027671,3]
[313424561,1707333039005,-6427.14,0.00027671,3]
[313424562,1707333039014,-548.78,0.00027671,3]
[313424563,1707333039024,-500.0,0.00027671,3]
[313424564,1707333039036,-500.0,0.00027671,3]
[313424565,1707333039045,-2384.52,0.00027671,3]
[313424566,1707333039054,-500.0,0.00027671,3]
[313424567,1707333039063,-500.0,0.00027671,3]
[313424568,1707333039073,-1284.96,0.00027671,3]
[313424569,1707333039082,-3677.54,0.00027671,3]
[313424570,1707333039092,-500.0,0.00027671,3]
[313424571,1707333039101,-500.0,0.00027671,3]
[313424572,1707333039111,-500.0,0.00027671,3]
[313424573,1707333039120,-153.0,0.00027671,2]
[313424574,1707333039130,-197.2351802,0.00027671,2]
[313424575,1707333039139,-330.9567163,0.00027671,2]
[313424576,1707333039148,-306.542544,0.00027671,2]
[313424577,1707333039157,-153.873444,0.00027671,2]
[313424578,1707333039166,-153.0,0.00027671,2]
[313424579,1707333039175,-199.9099361,0.00027671,2]
[313424580,1707333039185,-154.000139,0.00027671,2]
[313424581,1707333039194,-153.0,0.00027671,2]
[313424582,1707333039203,-199.9099361,0.00027671,2]
[313424583,1707333039212,-153.0,0.00027671,2]
[313424584,1707333039221,-153.0,0.00027671,2]
[313424585,1707333039230,-153.0,0.00027671,2]
[313424586,1707333039239,-153.0,0.00027671,2]
[313424587,1707333039248,-153.0,0.00027671,2]
[313424588,1707333039257,-199.9099361,0.00027671,2]
[313424589,1707333039266,-153.0,0.00027671,2]
[313424590,1707333039274,-199.9099361,0.00027671,2]
[313424591,1707333039283,-153.0,0.00027671,2]
[313424592,1707333039293,-153.0,0.00027671,2]
[313424593,1707333039302,-153.0,0.00027671,2]
[313424594,1707333039310,-153.0,0.00027671,2]
[313424595,1707333039319,-199.9099361,0.00027671,2]
[313424596,1707333039328,-199.9099361,0.00027671,2]
[313424597,1707333039337,-157.5348743,0.00027671,2]
[313424598,1707333039346,-199.9099361,0.00027671,2]
[313424599,1707333039355,-153.0,0.00027671,2]
[313424600,1707333039364,-199.9099361,0.00027671,2]
[313424601,1707333039373,-153.0,0.00027671,2]
[313424602,1707333039383,-199.9099361,0.00027671,2]
[313424603,1707333039391,-153.0,0.00027671,2]
[313424604,1707333039400,-199.9099361,0.00027671,2]
[313424605,1707333039410,-199.9099361,0.00027671,2]
[313424606,1707333039419,-153.0,0.00027671,2]
[313424607,1707333039428,-199.9099361,0.00027671,2]
[313424608,1707333039437,-122.02895028,0.00027671,2]
[313424635,1707333045890,-500.0,0.00027397,3]
[313424636,1707333045899,-1164.99,0.00027397,3]
[313424637,1707333045908,-107.26109537,0.00027671,3]
[313424638,1707333045919,-392.73890463,0.00027671,3]
[313424639,1707333045929,-1164.99,0.00027671,3]
[313424640,1707333045938,-77.88098582,0.00027671,2]
[313424641,1707333045946,-199.9099361,0.00027671,2]
[313424642,1707333045955,-153.0,0.00027671,2]
[313424643,1707333045963,-199.9099361,0.00027671,2]
[313424644,1707333045972,-204.2181405,0.00027671,2]
[313424645,1707333045981,-25.85209685,0.00027671,2]
[313424646,1707333045992,-127.14790315,0.00027671,2]
[313424647,1707333046001,-372.85209685,0.00027935,2]
[313424712,1707333052088,160.37388443,0.00019701,2]
[313424732,1707333839405,-3278111.27928265,0.00042463,30]
[313424733,1707333839429,-500000.0,0.00042463,30]
[313424734,1707333839452,-106987.03001723,0.00042463,30]
[313424735,1707333839474,-30036.83698347,0.00042463,31]
[313424736,1707333839496,-70786.0,0.00042463,32]
[313424737,1707333839518,-10999.76459199,0.00042463,31]
[313424738,1707333839540,-1075.40519953,0.00042463,30]
[313424739,1707333839563,-500.0,0.00042463,120]
[313424740,1707333839584,-1636.77400746,0.00042463,120]
[313424741,1707333839607,-2428.15063478,0.00042463,120]
[313424742,1707333839629,-661.47498067,0.00042463,30]
[313424743,1707333839650,-1143.63409091,0.00042463,30]
[313424744,1707333839672,-1057.17882084,0.00042463,120]
[313424745,1707333839693,-2445.75529887,0.00042463,120]
[313424746,1707333839717,-314.26486439,0.00042463,120]
[313424747,1707333839739,-151.10655319,0.00042463,30]
[313424748,1707333839763,-16322.02213488,0.00042463,90]
[313424749,1707333839785,-1787.3657371,0.00042463,120]
[313424750,1707333839807,-96542.36548491,0.00042463,120]
[313424751,1707333839829,-5217.0,0.00042463,120]
[313424752,1707333839851,-4983.52746708,0.00042463,60]
[313424753,1707333839873,-1488.9455994,0.00042463,60]
[313424754,1707333839895,-445476.60796247,0.00042463,120]
[313424755,1707333839916,-10064.0380759,0.00042463,35]
[313424756,1707333839938,-12413.98,0.00042463,30]
[313424757,1707333839959,-161.1239589,0.00042463,120]
[313424758,1707333839981,-11946.7033906,0.00042463,30]
[313424759,1707333840005,-1269.01060344,0.00042463,35]
[313424760,1707333840030,-2008689.21416962,0.00042463,30]
[313424761,1707333840051,-260.0,0.00042463,120]
[313424762,1707333840075,-2375043.44008972,0.00042463,30]
[313424769,1707333881858,-244868.61018551,0.00042463,30]
[313424770,1707333881881,-686.4311578,0.00042463,35]
[313424771,1707333881903,-262816.0,0.00042463,30]
[313424772,1707333881928,-17072.93209663,0.00042463,120]
[313424773,1707333881950,-1649.08663327,0.00042463,120]
[313424774,1707333881972,-42878.3836905,0.00042463,60]
[313424775,1707333881995,-15000.0,0.00042463,120]
[313424776,1707333882019,-72072.37504823,0.00042463,60]
[313424777,1707333882044,-9270.40631068,0.00042463,120]
[313424778,1707333882069,-968.96751337,0.00042463,120]
[313424779,1707333882092,-207.16775824,0.00042463,30]
[313424780,1707333882115,-11199.19380617,0.00042463,30]
[313424781,1707333882137,-16229.60034282,0.00042463,120]
[313424782,1707333882159,-14670.05414015,0.00042463,120]
[313424783,1707333882181,-12794.68513054,0.00042463,120]
[313424784,1707333882203,-27710.12031426,0.00042463,120]
[313424785,1707333882225,-8852.86134606,0.00042463,30]
[313424786,1707333882247,-6782.09278473,0.00042463,120]
[313424787,1707333882270,-504.50555185,0.00042463,120]
[313424788,1707333882294,-4000.0,0.00042463,30]
[313424789,1707333882317,-201.42397,0.00042463,120]
[313424790,1707333882340,-150.58077427,0.00042463,120]
[313424791,1707333884465,1787.3657371,0.00042463,120]
[313424813,1707334146147,-155.00310006,0.00019652,2]
[313424814,1707334146170,-155.00310006,0.00019652,2]
[313424815,1707334146191,-352.18460138,0.00019653,2]
[313424816,1707334146213,-155.0,0.00019654,3]
[313424817,1707334146234,-3344.97073656,0.00019662,2]
[313424818,1707334146255,-3443.6158477,0.00019701,2]
[313424819,1707334146275,-270.562763,0.00021184,2]
[313424820,1707334146296,-166.666666,0.00021918,2]
[313424821,1707334146317,-12616.4025037,0.00022105,2]
[313424822,1707334146337,-166.666666,0.00022431,2]
[313424823,1707334146360,-166.666666,0.00022944,2]
[313424824,1707334146384,-166.666666,0.00023456,2]
[313424825,1707334146404,-166.666666,0.00023969,2]
[313424826,1707334146425,-1466.42824937,0.00023999,2]
[313424894,1707334232022,-155.00310006,0.000231,4]
[313424897,1707334232033,-352.18460138,0.00024314,2]
[313424899,1707334232042,-200.0,0.00024315,7]
[313424901,1707334232051,-166.666666,0.00024482,2]
[313424903,1707334232060,-4039.14093432,0.00025144,2]
[313424905,1707334232069,-335.52992191,0.00025145,2]
[313424907,1707334232078,-6254.18317576,0.00025146,2]
[313424909,1707334232091,-3713.19293494,0.00025146,2]
[313424911,1707334232100,-699.25416012,0.00025148,2]
[313424913,1707334232109,-150.0,0.00025571,2]
[313424915,1707334232118,-208.64430105,0.00025667,2]
[313424917,1707334232128,-155.14926081,0.00025667,2]
[313424919,1707334232137,-200.01550217,0.00025667,2]
[313424921,1707334232146,-240.218605,0.00025668,2]
[313424923,1707334232156,-20253.69515254,0.00025669,2]
[313425006,1707334238301,-4431.65877235,0.00025669,2]
[313425008,1707334238314,-2880.6123627,0.00025675,2]
[313425010,1707334238324,-5000.0,0.00025675,2]
[313425011,1707334238334,-3500.0,0.00025675,2]
[313425012,1707334238347,-303.71422068,0.00025675,2]
[313425014,1707334238359,-168.476148,0.00025861,2]
[313425016,1707334238370,-262.79139032,0.00026197,2]
[313425019,1707334238383,-1863.83248031,0.00026197,2]
[313425021,1707334238396,-280.0,0.00026746,15]
[313425023,1707334238409,-365.433075,0.00026849,2]
[313425025,1707334238420,-1382.39428642,0.00027,2]
[313425027,1707334238431,-156.5099535,0.0002726,2]
[313425029,1707334238442,-153.0,0.0002726,2]
[313425032,1707334238454,-153.0,0.0002726,2]
[313425034,1707334238465,-150.67095252,0.00027297,2]
[313425036,1707334238477,-5262.62,0.00027367,3]
[313425038,1707334238487,-820.4174629,0.00027396,2]
[313425040,1707334238499,-500.0,0.00027397,3]
[313425042,1707334238509,-500.0,0.00027397,2]
[313425044,1707334238521,-500.0,0.00027397,3]
[313425046,1707334238533,-500.0,0.00027397,3]
[313425049,1707334238545,-500.0,0.00027397,2]
[313425051,1707334238556,-894.45,0.00027397,3]
[313425053,1707334238568,-500.0,0.00027397,3]
[313425055,1707334238578,-500.0,0.00027397,3]
[313425057,1707334238589,-500.0,0.00027397,3]
[313425059,1707334238600,-1292.89,0.00027397,3]
[313425062,1707334238610,-500.0,0.00027397,3]
[313425064,1707334238621,-500.0,0.00027397,3]
[313425066,1707334238632,-1000.0,0.00027397,2]
[313425068,1707334238644,-500.0,0.00027397,3]
[313425070,1707334238655,-500.0,0.00027397,3]
[313425073,1707334238666,-1105.88,0.00027397,3]
[313425075,1707334238677,-745.8,0.00027397,3]
[313425077,1707334238690,-500.0,0.00027397,3]
[313425079,1707334238701,-1259.67,0.00027397,3]
[313425082,1707334238713,-592.98,0.00027397,3]
[313425084,1707334238724,-500.0,0.00027397,3]
[313425086,1707334238735,-717.64,0.00027397,3]
[313425088,1707334238746,-500.0,0.00027397,3]
[313425091,1707334238758,-5630.64,0.00027397,3]
[313425093,1707334238768,-500.0,0.00027397,3]
[313425095,1707334238778,-6599.26,0.00027397,3]
[313425097,1707334238787,-2083.28,0.00027397,3]
[313425099,1707334238797,-500.0,0.00027397,3]
[313425101,1707334238808,-526.05,0.00027397,3]
[313425103,1707334238817,-500.0,0.00027397,3]
[313425105,1707334238829,-741.73,0.00027397,3]
[313425108,1707334238839,-1279.51,0.00027397,3]
[313425110,1707334238851,-2331.57,0.00027397,3]
[313425112,1707334238862,-500.0,0.00027397,3]
[313425114,1707334238873,-500.0,0.00027397,3]
[313425117,1707334238885,-3587.38,0.00027397,3]
[313425118,1707334238897,-500.0,0.00027397,3]
[313425121,1707334238908,-500.0,0.00027397,3]
[313425123,1707334238918,-920.86,0.00027397,3]
[313425124,1707334238929,-153.9082875,0.00027397,2]
[313425125,1707334238939,-153.0,0.00027397,2]
[313425126,1707334238951,-4279.12,0.0002767,3]
[313425127,1707334238962,-1125.66,0.0002767,3]
[313425128,1707334238974,-500.0,0.00027671,2]
[313425129,1707334238986,-500.0,0.00027671,3]
[313425130,1707334238996,-500.0,0.00027671,2]
[313425131,1707334239007,-894.45,0.00027671,3]
[313425132,1707334239018,-500.0,0.00027671,3]
[313425133,1707334239028,-500.0,0.00027671,3]
[313425134,1707334239039,-500.0,0.00027671,3]
[313425135,1707334239050,-1292.89,0.00027671,3]
[313425136,1707334239060,-89.5585817,0.00027671,3]
[313425137,1707334239075,-410.4414183,0.00027671,3]
[313425138,1707334239085,-500.0,0.00027671,3]
[313425139,1707334239096,-500.0,0.00027671,3]
[313425140,1707334239106,-500.0,0.00027671,3]
[313425141,1707334239117,-1105.88,0.00027671,3]
[313425142,1707334239128,-745.8,0.00027671,3]
[313425143,1707334239139,-500.0,0.00027671,3]
[313425144,1707334239150,-1259.67,0.00027671,3]
[313425145,1707334239161,-592.98,0.00027671,3]
[313425146,1707334239171,-500.0,0.00027671,3]
[313425147,1707334239182,-717.64,0.00027671,3]
[313425148,1707334239193,-500.0,0.00027671,3]
[313425149,1707334239204,-5630.64,0.00027671,3]
[313425150,1707334239215,-500.0,0.00027671,3]
[313425151,1707334239226,-6599.26,0.00027671,3]
[313425152,1707334239237,-2083.28,0.00027671,3]
[313425153,1707334239249,-500.0,0.00027671,3]
[313425154,1707334239260,-526.05,0.00027671,3]
[313425155,1707334239271,-500.0,0.00027671,3]
[313425156,1707334239282,-741.73,0.00027671,3]
[313425157,1707334239292,-1279.51,0.00027671,3]
[313425158,1707334239303,-2331.57,0.00027671,3]
[313425159,1707334239314,-500.0,0.00027671,3]
[313425160,1707334239445,-281.26608329,0.00027671,3]
[313425205,1707334241285,-500.0,0.00027397,3]
[313425206,1707334241297,-654.7,0.00027397,3]
[313425207,1707334241307,-218.73391671,0.00027671,3]
[313425208,1707334241316,-3587.38,0.00027671,3]
[313425209,1707334241325,-500.0,0.00027671,3]
[313425210,1707334241334,-500.0,0.00027671,3]
[313425212,1707334241343,-621.01495076,0.00027671,3]
[313425214,1707334241355,-299.84504924,0.00027671,3]
[313425216,1707334241364,-153.0,0.00027671,2]
[313425218,1707334241373,-8879.50558883,0.00027935,2]
[313425220,1707334241384,-9875.56963128,0.00027935,2]
[313425222,1707334241398,-2166.55740101,0.00027935,2]
[313425223,1707334241418,-799.67689617,0.00027935,2]
[313425272,1707334243604,-456.96666109,0.0002767,2]
[313425274,1707334243613,-1154.7,0.00027671,3]
[313425276,1707334243623,-362.41537928,0.00027935,2]
[313425278,1707334243632,-500.0,0.00027942,2]
[313425280,1707334243641,-500.0,0.00027942,2]
[313425282,1707334243650,-500.0,0.00027942,2]
[313425283,1707334243659,-445.83510049,0.00027942,2]
[313425476,1707334246114,-5336.18550261,0.00027935,3]
[313425477,1707334246171,-5825.64449739,0.00027935,3]
[313425478,1707334246181,-102.68451425,0.00027942,2]
[313425479,1707334246191,-500.0,0.00027942,2]
[313425480,1707334246200,-500.0,0.00027942,2]
[313425481,1707334246209,-500.0,0.00027942,2]
[313425482,1707334246218,-500.0,0.00027942,2]
[313425483,1707334246228,-500.0,0.00027942,2]
[313425485,1707334246238,-500.0,0.00027942,2]
[313425487,1707334246248,-512.20687619,0.00027942,2]
[313425489,1707334246257,-500.0,0.00027942,2]